Workbook

Sheet Skema 1
A1: Region Sjælland, psykiatriske sygehuse.
B2: Skema 1: Udgifter og indtægter på sygehusene/enhederne, eksklusiv omkostningssted 0001, Fælleskonto. (1.000 kr.)
A5: Sygehus | C5: 2023 | D5: 2022 | E5: 2021 | F5: 2020 | G5: Δ2022-2023 | H5: % afvigelse | I5: Begrundelse
A6: Region Sjælland, Voksen psykiatrien
A7: Region Sjælland, Voksen psykiatrien | B7: Hovedart 1: Lønninger | C7: =958061-13580 -> 944481 | D7: =931658-12367 -> 919291 | E7: =869826-11566 -> 858260 | F7: =841185-11628 -> 829557 | G7: =IF(ISERROR(C7- D7)=TRUE,"",C7 - D7) -> 25190 | H7: =IF(ISERROR((((C7- D7)/D7)*100)=TRUE),"",IF((((C7- D7)/D7)*100)<-7,FIXED(((C7- D7)/D7)*100, 1,TRUE) &"%" & "▼",IF((((C7- D7)/D7)*100)>7,FIXED(((C7- D7)/D7)*100, 1,TRUE) &"%" &"▲",FIXED(((C7- D7)/D7)*100, 1,TRUE)&"%"))) -> 2,7%
A8: Region Sjælland, Voksen psykiatrien | B8: Hovedart 2: Varekøb | C8: 29733 | D8: 35853 | E8: 36875 | F8: 46158 | G8: -6120 | H8: -17,1%▼ | I8: Færre anskaffelser i 2023 (Bl.a. Kidnakken)
A9: Region Sjælland, Voksen psykiatrien | B9: Hovedart 4: Tjenesteydelser m.v. | C9: 157971 | D9: 176526 | E9: 195928 | F9: 173302 | G9: -18555 | H9: -10,5%▼ | I9: Fald i udgifter til eksternt personale, læge og sygeplejevikarer
A10: Region Sjælland, Voksen psykiatrien | B10: Hovedart 5: Tilskud og overførsler | C10: 31 | D10: 195 | E10: 43 | F10: 168 | G10: -164 | H10: -84,1%▼ | I10: Der er tale om små bevægelser
A11: Region Sjælland, Voksen psykiatrien | B11: Hovedart 6: Finansudgifter | E11: 0 | F11: -152 | G11: 0
A12: Region Sjælland, Voksen psykiatrien | B12: Hovedart 7: Indtægter | C12: -26644 | D12: -27249 | E12: -30338 | F12: -17116 | G12: 605 | H12: -2,2%
A13: Region Sjælland, Voksen psykiatrien | B13: Hovedart 8: Finansindtægter | C13: 0 | F13: 0 | G13: 0
A14: Region Sjælland, Voksen psykiatrien | B14: Hovedart 9: Interne udgifter og indtægter | C14: =61941+13580 -> 75521 | D14: =63242+12367 -> 75609 | E14: =61494+11566 -> 73060 | F14: =64482+11628 -> 76110 | G14: -88 | H14: -0,1%
A15: Region Sjælland, Voksen psykiatrien | B15: I alt | C15: =SUMIFS((C7:C14),(A7:A14),A15) -> 1181093 | D15: =SUMIFS((D7:D14),(A7:A14),A15) -> 1180225 | E15: =SUMIFS((E7:E14),(A7:A14),A15) -> 1133828 | F15: =SUMIFS((F7:F14),(A7:A14),A15) -> 1108027 | G15: 868 | H15: 0,1%
A16: Region Sjælland, Børn-unge psykiatrien | G16: 0
A17: Region Sjælland, Børn-unge psykiatrien | B17: Hovedart 1: Lønninger | C17: =222299-2760 -> 219539 | D17: 211224 | E17: =212531-2317 -> 210214 | F17: =193181-2161 -> 191020 | G17: 8315 | H17: 3,9%
A18: Region Sjælland, Børn-unge psykiatrien | B18: Hovedart 2: Varekøb | C18: 6335 | D18: 6768 | E18: 6803 | F18: 7034 | G18: -433 | H18: -6,4%
A19: Region Sjælland, Børn-unge psykiatrien | B19: Hovedart 4: Tjenesteydelser m.v. | C19: 27150 | D19: 20930 | E19: 7815 | F19: 19354 | G19: 6220 | H19: 29,7%▲ | I19: SATS pulje projekter B&U. Forskydninger mellem årene.
A20: Region Sjælland, Børn-unge psykiatrien | B20: Hovedart 5: Tilskud og overførsler | C20: 0 | D20: 29 | E20: 4 | F20: 0 | G20: -29 | H20: -100,0%▼ | I20: Der er tale om små bevægelser
A21: Region Sjælland, Børn-unge psykiatrien | B21: Hovedart 6: Finansudgifter | C21: 0 | E21: 0 | F21: -13 | G21: 0
A22: Region Sjælland, Børn-unge psykiatrien | B22: Hovedart 7: Indtægter | C22: -19383 | D22: -6653 | E22: -4901 | F22: -18332 | G22: -12730 | H22: 191,3%▲ | I22: Indtægter i 2023 vedr. satspuljeprojekter B&U. (Afprøvning af fremskudt regional funktion i B&U). BED/Bakkehus. Forskydninger mellem årene.
A23: Region Sjælland, Børn-unge psykiatrien | B23: Hovedart 8: Finansindtægter | C23: 0 | E23: 0 | F23: 0 | G23: 0
A24: Region Sjælland, Børn-unge psykiatrien | B24: Hovedart 9: Interne udgifter og indtægter | C24: =3607+2760 -> 6367 | D24: 5599 | E24: =4815+2317 -> 7132 | F24: =4713+2161 -> 6874 | G24: 768 | H24: 13,7%▲ | I24: Barselspulje andel B&U
A25: Region Sjælland, Børn-unge psykiatrien | B25: I alt | C25: =SUMIFS((C7:C24),(A7:A24),A25) -> 240008 | D25: =SUMIFS((D7:D24),(A7:A24),A25) -> 237897 | E25: =SUMIFS((E7:E24),(A7:A24),A25) -> 227067 | F25: =SUMIFS((F7:F24),(A7:A24),A25) -> 205937 | G25: 2111 | H25: 0,9%
A26: Ikke fordelte udgifter i Region Sjælland, psykiatri | G26: 0
A27: Ikke fordelte udgifter i Region Sjælland, psykiatri | B27: Hovedart 1: Lønninger | G27: 0
A28: Ikke fordelte udgifter i Region Sjælland, psykiatri | B28: Hovedart 2: Varekøb | G28: 0
A29: Ikke fordelte udgifter i Region Sjælland, psykiatri | B29: Hovedart 4: Tjenesteydelser m.v. | G29: 0
A30: Ikke fordelte udgifter i Region Sjælland, psykiatri | B30: Hovedart 5: Tilskud og overførsler | G30: 0
A31: Ikke fordelte udgifter i Region Sjælland, psykiatri | B31: Hovedart 6: Finansudgifter | G31: 0
A32: Ikke fordelte udgifter i Region Sjælland, psykiatri | B32: Hovedart 7: Indtægter | G32: 0
A33: Ikke fordelte udgifter i Region Sjælland, psykiatri | B33: Hovedart 8: Finansindtægter | G33: 0
A34: Ikke fordelte udgifter i Region Sjælland, psykiatri | B34: Hovedart 9: Interne udgifter og indtægter | G34: 0
A35: Ikke fordelte udgifter i Region Sjælland, psykiatri | B35: I alt | C35: =SUMIFS((C7:C34),(A7:A34),A35) -> 0 | D35: =SUMIFS((D7:D34),(A7:A34),A35) -> 0 | E35: =SUMIFS((E7:E34),(A7:A34),A35) -> 0 | F35: =SUMIFS((F7:F34),(A7:A34),A35) -> 0 | G35: 0

Sheet Skema 2
A1: Region Sjælland, psykiatriske sygehuse.
B2: Skema 2: Fællesudgifter og -indtægter vedrørende sygehusene. (1.000 kr.)
A5: Sygehus | C5: 2023 | D5: 2022 | E5: 2021 | F5: 2020 | G5: Δ2022-2023 | H5: % afvigelse | I5: Begrundelse
A6: Region Sjælland, Voksen psykiatrien
A7: Region Sjælland, Voksen psykiatrien | B7: Hovedart 1: Lønninger | C7: 42331.26656 | D7: 37072.57435 | E7: 44719.12482 | F7: 42678.77958 | G7: =IF(ISERROR(C7- D7)=TRUE,"",C7 - D7) -> 5258.692209 | H7: =IF(ISERROR((((C7- D7)/D7)*100)=TRUE),"",IF((((C7- D7)/D7)*100)<-7,FIXED(((C7- D7)/D7)*100, 1,TRUE) &"%" & "▼",IF((((C7- D7)/D7)*100)>7,FIXED(((C7- D7)/D7)*100, 1,TRUE) &"%" &"▲",FIXED(((C7- D7)/D7)*100, 1,TRUE)&"%"))) -> 14,2%▲ | I7: Stigningen kan henføres til øget forbrug af ydelser, herunder transport, arealpleje mv
A8: Region Sjælland, Voksen psykiatrien | B8: Hovedart 2: Varekøb | C8: 138655.5195 | D8: 136401.0186 | E8: 133030.0079 | F8: 136142.0797 | G8: 2254.500838 | H8: 1,7%
A9: Region Sjælland, Voksen psykiatrien | B9: Hovedart 4: Tjenesteydelser m.v. | C9: 48979.19901 | D9: 43817.10549 | E9: 45470.72412 | F9: 44207.07419 | G9: 5162.093521 | H9: 11,8%▲ | I9: Stigningen kan henføres til øget forbrug af ydelser, herunder transport, arealpleje mv
A10: Region Sjælland, Voksen psykiatrien | B10: Hovedart 5: Tilskud og overførsler | E10: 131.8323 | F10: 134.25679 | G10: 0
A11: Region Sjælland, Voksen psykiatrien | B11: Hovedart 6: Finansudgifter | E11: 0 | F11: -17.95989 | G11: 0
A12: Region Sjælland, Voksen psykiatrien | B12: Hovedart 7: Indtægter | C12: -16287.14905 | D12: -16181.16923 | E12: -17418.31718 | F12: -14968.08535 | G12: -105.9798245 | H12: 0,7%
A13: Region Sjælland, Voksen psykiatrien | B13: Hovedart 8: Finansindtægter | C13: -53.09328367 | G13: -53.09328367
A14: Region Sjælland, Voksen psykiatrien | B14: Hovedart 9: Interne udgifter og indtægter | C14: -156025.5159 | D14: -152188.8341 | E14: -156712.5605 | F14: -160856.9384 | G14: -3836.681859 | H14: 2,5%
A15: Region Sjælland, Voksen psykiatrien | B15: I alt | C15: =SUMIFS((C7:C14),(A7:A14),A15) -> 57600.22675 | D15: =SUMIFS((D7:D14),(A7:A14),A15) -> 48920.69515 | E15: =SUMIFS((E7:E14),(A7:A14),A15) -> 49220.81154 | F15: =SUMIFS((F7:F14),(A7:A14),A15) -> 47319.20663 | G15: 8679.531601 | H15: 17,7%▲
A16: Region Sjælland, Børn-unge psykiatrien | G16: 0
A17: Region Sjælland, Børn-unge psykiatrien | B17: Hovedart 1: Lønninger | C17: 8602.756494 | D17: 7475.099707 | E17: 8965.29873 | F17: 7930.46932 | G17: 1127.656787 | H17: 15,1%▲ | I17: Stigningen kan henføres til øget forbrug af ydelser, herunder transport, arealpleje mv
A18: Region Sjælland, Børn-unge psykiatrien | B18: Hovedart 2: Varekøb | C18: 28178.21831 | D18: 27503.11334 | E18: 26669.88155 | F18: 25297.5974 | G18: 675.1049653 | H18: 2,5%
A19: Region Sjælland, Børn-unge psykiatrien | B19: Hovedart 4: Tjenesteydelser m.v. | C19: 9953.780186 | D19: 8835.028 | E19: 9115.97951 | F19: 8214.45337 | G19: 1118.752187 | H19: 12,7%▲ | I19: Stigningen kan henføres til øget forbrug af ydelser, herunder transport, arealpleje mv
A20: Region Sjælland, Børn-unge psykiatrien | B20: Hovedart 5: Tilskud og overførsler | E20: 26.4297652 | F20: 24.94728 | G20: 0
A21: Region Sjælland, Børn-unge psykiatrien | B21: Hovedart 6: Finansudgifter | F21: -3.33726 | G21: 0
A22: Region Sjælland, Børn-unge psykiatrien | B22: Hovedart 7: Indtægter | C22: -3309.950036 | D22: -3262.677477 | E22: -3492.027574 | F22: -2781.33401 | G22: -47.27255893 | H22: 1,4%
A23: Region Sjælland, Børn-unge psykiatrien | B23: Hovedart 8: Finansindtægter | C23: -10.78986357 | G23: -10.78986357
A24: Region Sjælland, Børn-unge psykiatrien | B24: Hovedart 9: Interne udgifter og indtægter | C24: -31708.22963 | D24: -30686.47724 | E24: -31417.76422 | F24: -29890.05365 | G24: -1021.752386 | H24: 3,3%
A25: Region Sjælland, Børn-unge psykiatrien | B25: I alt | C25: =SUMIFS((C7:C24),(A7:A24),A25) -> 11705.78546 | D25: =SUMIFS((D7:D24),(A7:A24),A25) -> 9864.086333 | E25: =SUMIFS((E7:E24),(A7:A24),A25) -> 9867.797757 | F25: =SUMIFS((F7:F24),(A7:A24),A25) -> 8792.74245 | G25: 1841.69913 | H25: 18,7%▲
A26: Ikke fordelte udgifter i Region Sjælland, psykiatri | G26: 0
A27: Ikke fordelte udgifter i Region Sjælland, psykiatri | B27: Hovedart 1: Lønninger | C27: 0 | D27: 83.96162604 | E27: 105.03805 | F27: =79.67329+14.8047 -> 94.47799 | G27: -83.96162604 | H27: -100,0%▼ | I27: Uvæsentlig beløb
A28: Ikke fordelte udgifter i Region Sjælland, psykiatri | B28: Hovedart 2: Varekøb | D28: 223.8976694 | E28: 945.34243 | F28: =15.93466+2.96094 -> 18.8956 | G28: -223.8976694 | H28: -100,0%▼ | I28: Uvæsentlig beløb
A29: Ikke fordelte udgifter i Region Sjælland, psykiatri | B29: Hovedart 4: Tjenesteydelser m.v. | C29: 43807.34668 | D29: 89464.17292 | E29: 86573.03342 | F29: =58242.43246+4139.64637+844.5369+156.92984 -> 63383.54557 | G29: -45656.82624 | H29: -51,0%▼ | I29: Kan primært henføres til reguleringer vedr. tidligere år på udenregional samt højt specialiseret behandling
A30: Ikke fordelte udgifter i Region Sjælland, psykiatri | B30: Hovedart 5: Tilskud og overførsler | G30: 0
A31: Ikke fordelte udgifter i Region Sjælland, psykiatri | B31: Hovedart 6: Finansudgifter | G31: 0
A32: Ikke fordelte udgifter i Region Sjælland, psykiatri | B32: Hovedart 7: Indtægter | C32: -136519.9174 | D32: -114042.0505 | E32: -123656.1094 | F32: =-34104.0679-95371.80496+254.95453+47.37505 -> -129173.5433 | G32: -22477.86691 | H32: 19,7%▲ | I32: Stigningen kan henføres til takstindtægterne
A33: Ikke fordelte udgifter i Region Sjælland, psykiatri | B33: Hovedart 8: Finansindtægter | G33: 0
A34: Ikke fordelte udgifter i Region Sjælland, psykiatri | B34: Hovedart 9: Interne udgifter og indtægter | C34: -105.3313601 | E34: 280.10146 | F34: =446.17044+82.90633 -> 529.07677 | G34: -105.3313601
A35: Ikke fordelte udgifter i Region Sjælland, psykiatri | B35: I alt | C35: =SUMIFS((C7:C34),(A7:A34),A35) -> -92817.9021 | D35: =SUMIFS((D7:D34),(A7:A34),A35) -> -24270.01829 | E35: =SUMIFS((E7:E34),(A7:A34),A35) -> -35752.59401 | F35: =SUMIFS((F7:F34),(A7:A34),A35) -> -65147.54735 | G35: -68547.88381 | H35: 282,4%▲

Sheet Skema 3
A1: Region Sjælland, psykiatriske sygehuse.
B2: Skema 3:Regionale fællesudgifter og -indtægter. (1.000 kr.)
A5: Sygehus | C5: 2023 | D5: 2022 | E5: 2021 | F5: 2020 | G5: Δ2022-2023 | H5: % afvigelse | I5: Begrundelse
A6: Region Sjælland, Voksen psykiatrien
A7: Region Sjælland, Voksen psykiatrien | B7: 1.70.50: Andel af fællesudgifter | C7: 68312.93122 | D7: 65073.26173 | E7: 61154.81707 | F7: 59527.15029 | G7: =IF(ISERROR(C7- D7)=TRUE,"",C7 - D7) -> 3239.669484 | H7: =IF(ISERROR((((C7- D7)/D7)*100)=TRUE),"",IF((((C7- D7)/D7)*100)<-7,FIXED(((C7- D7)/D7)*100, 1,TRUE) &"%" & "▼",IF((((C7- D7)/D7)*100)>7,FIXED(((C7- D7)/D7)*100, 1,TRUE) &"%" &"▲",FIXED(((C7- D7)/D7)*100, 1,TRUE)&"%"))) -> 5,0%
A8: Region Sjælland, Voksen psykiatrien | B8: 1.60.40: Andel af central administration af sundhed (til og med 2019) | G8: 0
A9: Region Sjælland, Voksen psykiatrien | B9: 1.60.41: Andel af øvrige udgifter og indtægter | G9: 0
A10: Region Sjælland, Voksen psykiatrien | B10: 1.50.33: Andel af central administration af sundhed (ekskl. psykiatri) | G10: 0
A11: Region Sjælland, Voksen psykiatrien | B11: 1.50.35: Administration af det psykiatriske område (kun central del) | G11: 0
A12: Region Sjælland, Voksen psykiatrien | B12: I alt | C12: =SUMIFS((C7:C11),(A7:A11),A12) -> 68312.93122 | D12: =SUMIFS((D7:D11),(A7:A11),A12) -> 65073.26173 | E12: =SUMIFS((E7:E11),(A7:A11),A12) -> 61154.81707 | F12: =SUMIFS((F7:F11),(A7:A11),A12) -> 59527.15029 | G12: 3239.669484 | H12: 5,0%
A13: Region Sjælland, Børn-unge psykiatrien | G13: 0
A14: Region Sjælland, Børn-unge psykiatrien | B14: 1.70.50: Andel af fællesudgifter | C14: 13882.87099 | D14: 13046.76142 | E14: 12260.32947 | F14: 11061.19347 | G14: 836.109575 | H14: 6,4%
A15: Region Sjælland, Børn-unge psykiatrien | B15: 1.60.40: Andel af central administration af sundhed (til og med 2019) | G15: 0
A16: Region Sjælland, Børn-unge psykiatrien | B16: 1.60.41: Andel af øvrige udgifter og indtægter | G16: 0
A17: Region Sjælland, Børn-unge psykiatrien | B17: 1.50.33: Andel af central administration af sundhed (ekskl. psykiatri) | G17: 0
A18: Region Sjælland, Børn-unge psykiatrien | B18: 1.50.35: Administration af det psykiatriske område (kun central del) | G18: 0
A19: Region Sjælland, Børn-unge psykiatrien | B19: I alt | C19: =SUMIFS((C7:C18),(A7:A18),A19) -> 13882.87099 | D19: =SUMIFS((D7:D18),(A7:A18),A19) -> 13046.76142 | E19: =SUMIFS((E7:E18),(A7:A18),A19) -> 12260.32947 | F19: =SUMIFS((F7:F18),(A7:A18),A19) -> 11061.19347 | G19: 836.109575 | H19: 6,4%
A20: Ikke fordelte udgifter i Region Sjælland, psykiatri | G20: 0
A21: Ikke fordelte udgifter i Region Sjælland, psykiatri | B21: 1.70.50: Andel af fællesudgifter | G21: 0
A22: Ikke fordelte udgifter i Region Sjælland, psykiatri | B22: 1.60.40: Andel af central administration af sundhed (til og med 2019) | G22: 0
A23: Ikke fordelte udgifter i Region Sjælland, psykiatri | B23: 1.60.41: Andel af øvrige udgifter og indtægter | G23: 0
A24: Ikke fordelte udgifter i Region Sjælland, psykiatri | B24: 1.50.33: Andel af central administration af sundhed (ekskl. psykiatri) | G24: 0
A25: Ikke fordelte udgifter i Region Sjælland, psykiatri | B25: 1.50.35: Administration af det psykiatriske område (kun central del) | G25: 0
A26: Ikke fordelte udgifter i Region Sjælland, psykiatri | B26: I alt | C26: =SUMIFS((C7:C25),(A7:A25),A26) -> 0 | D26: =SUMIFS((D7:D25),(A7:A25),A26) -> 0 | E26: =SUMIFS((E7:E25),(A7:A25),A26) -> 0 | F26: =SUMIFS((F7:F25),(A7:A25),A26) -> 0 | G26: 0

Sheet Skema 4
A1: Region Sjælland, psykiatriske sygehuse.
B2: Skema 4: Udgifter og indtægter til og fra psykiatriske afdelinger konteret på somatiske sygehuse. (1.000 kr.)
A5: Sygehus | C5: 2023 | D5: 2022 | E5: 2021 | F5: 2020 | G5: Δ2022-2023 | H5: % afvigelse | I5: Begrundelse
A6: Region Sjælland, Voksen psykiatrien
A7: Region Sjælland, Voksen psykiatrien | B7: Korrektion | G7: =IF(ISERROR(C7- D7)=TRUE,"",C7 - D7) -> 0 | H7: =IF(ISERROR((((C7- D7)/D7)*100)=TRUE),"",IF((((C7- D7)/D7)*100)<-7,FIXED(((C7- D7)/D7)*100, 1,TRUE) &"%" & "▼",IF((((C7- D7)/D7)*100)>7,FIXED(((C7- D7)/D7)*100, 1,TRUE) &"%" &"▲",FIXED(((C7- D7)/D7)*100, 1,TRUE)&"%"))) -> 
A8: Region Sjælland, Voksen psykiatrien | B8: Lønudg. på psyk. afd.,somatiske sygehuse | G8: 0
A9: Region Sjælland, Voksen psykiatrien | B9: Øvrige udg. til psyk. afd.,somatiske sygehuse | G9: 0
A10: Region Sjælland, Voksen psykiatrien | B10: I alt | C10: =SUMIFS((C7:C9),(A7:A9),A10) -> 0 | D10: =SUMIFS((D7:D9),(A7:A9),A10) -> 0 | E10: =SUMIFS((E7:E9),(A7:A9),A10) -> 0 | F10: =SUMIFS((F7:F9),(A7:A9),A10) -> 0 | G10: 0
A11: Region Sjælland, Børn-unge psykiatrien | G11: 0
A12: Region Sjælland, Børn-unge psykiatrien | B12: Korrektion | G12: 0
A13: Region Sjælland, Børn-unge psykiatrien | B13: Lønudg. på psyk. afd.,somatiske sygehuse | G13: 0
A14: Region Sjælland, Børn-unge psykiatrien | B14: Øvrige udg. til psyk. afd.,somatiske sygehuse | G14: 0
A15: Region Sjælland, Børn-unge psykiatrien | B15: I alt | C15: =SUMIFS((C7:C14),(A7:A14),A15) -> 0 | D15: =SUMIFS((D7:D14),(A7:A14),A15) -> 0 | E15: =SUMIFS((E7:E14),(A7:A14),A15) -> 0 | F15: =SUMIFS((F7:F14),(A7:A14),A15) -> 0 | G15: 0
A16: Ikke fordelte udgifter i Region Sjælland, psykiatri | G16: 0
A17: Ikke fordelte udgifter i Region Sjælland, psykiatri | B17: Korrektion | G17: 0
A18: Ikke fordelte udgifter i Region Sjælland, psykiatri | B18: Lønudg. på psyk. afd.,somatiske sygehuse | G18: 0
A19: Ikke fordelte udgifter i Region Sjælland, psykiatri | B19: Øvrige udg. til psyk. afd.,somatiske sygehuse | G19: 0
A20: Ikke fordelte udgifter i Region Sjælland, psykiatri | B20: I alt | C20: =SUMIFS((C7:C19),(A7:A19),A20) -> 0 | D20: =SUMIFS((D7:D19),(A7:A19),A20) -> 0 | E20: =SUMIFS((E7:E19),(A7:A19),A20) -> 0 | F20: =SUMIFS((F7:F19),(A7:A19),A20) -> 0 | G20: 0

Sheet Skema 5
A1: Region Sjælland, psykiatriske sygehuse.
B2: Skema 5: Leasing- og huslejeudgifter. (1.000 kr.)
A5: Sygehus | C5: 2023 | D5: 2022 | E5: 2021 | F5: 2020 | G5: Δ2022-2023 | H5: % afvigelse | I5: Begrundelse
A6: Region Sjælland, Voksen psykiatrien
A7: Region Sjælland, Voksen psykiatrien | B7: Andre udgifter | G7: =IF(ISERROR(C7- D7)=TRUE,"",C7 - D7) -> 0 | H7: =IF(ISERROR((((C7- D7)/D7)*100)=TRUE),"",IF((((C7- D7)/D7)*100)<-7,FIXED(((C7- D7)/D7)*100, 1,TRUE) &"%" & "▼",IF((((C7- D7)/D7)*100)>7,FIXED(((C7- D7)/D7)*100, 1,TRUE) &"%" &"▲",FIXED(((C7- D7)/D7)*100, 1,TRUE)&"%"))) -> 
A8: Region Sjælland, Voksen psykiatrien | B8: Leasing- og lejeudgifter | C8: =833+2814 -> 3647 | D8: 2313 | E8: =367+480 -> 847 | F8: =214+653 -> 867 | G8: 1334 | H8: 57,7%▲ | I8: Stigning vedrører tildeling af fællesudgifter fra regionen.
A9: Region Sjælland, Voksen psykiatrien | B9: Huslejeudgifter | C9: =8969+490 -> 9459 | D9: 7214 | E9: =6122+75 -> 6197 | F9: =5133+73 -> 5206 | G9: 2245 | H9: 31,1%▲ | I9: Ændringer i lejemål i Psykiatrien, samt stigining i fællesudgifter fra regionen.
A10: Region Sjælland, Voksen psykiatrien | B10: I alt | C10: =SUMIFS((C7:C9),(A7:A9),A10) -> 13106 | D10: =SUMIFS((D7:D9),(A7:A9),A10) -> 9527 | E10: =SUMIFS((E7:E9),(A7:A9),A10) -> 7044 | F10: =SUMIFS((F7:F9),(A7:A9),A10) -> 6073 | G10: 3579 | H10: 37,6%▲
A11: Region Sjælland, Børn-unge psykiatrien | G11: 0
A12: Region Sjælland, Børn-unge psykiatrien | B12: Andre udgifter | G12: 0
A13: Region Sjælland, Børn-unge psykiatrien | B13: Leasing- og lejeudgifter | C13: =131+572 -> 703 | D13: 550 | E13: =64+96 -> 160 | F13: =47+121 -> 168 | G13: 153 | H13: 27,8%▲ | I13: Stigning vedrører tildeling af fællesudgifter fra regionen.
A14: Region Sjælland, Børn-unge psykiatrien | B14: Huslejeudgifter | C14: =368+100 -> 468 | D14: 547 | E14: =538+15 -> 553 | F14: =110+14 -> 124 | G14: -79 | H14: -14,4%▼ | I14: Fald i huslejeudgifter i B&U
A15: Region Sjælland, Børn-unge psykiatrien | B15: I alt | C15: =SUMIFS((C7:C14),(A7:A14),A15) -> 1171 | D15: =SUMIFS((D7:D14),(A7:A14),A15) -> 1097 | E15: =SUMIFS((E7:E14),(A7:A14),A15) -> 713 | F15: =SUMIFS((F7:F14),(A7:A14),A15) -> 292 | G15: 74 | H15: 6,7%
A16: Ikke fordelte udgifter i Region Sjælland, psykiatri | G16: 0
A17: Ikke fordelte udgifter i Region Sjælland, psykiatri | B17: Andre udgifter | G17: 0
A18: Ikke fordelte udgifter i Region Sjælland, psykiatri | B18: Leasing- og lejeudgifter | G18: 0
A19: Ikke fordelte udgifter i Region Sjælland, psykiatri | B19: Huslejeudgifter | G19: 0
A20: Ikke fordelte udgifter i Region Sjælland, psykiatri | B20: I alt | C20: =SUMIFS((C7:C19),(A7:A19),A20) -> 0 | D20: =SUMIFS((D7:D19),(A7:A19),A20) -> 0 | E20: =SUMIFS((E7:E19),(A7:A19),A20) -> 0 | F20: =SUMIFS((F7:F19),(A7:A19),A20) -> 0 | G20: 0

Sheet Skema 6
A1: Region Sjælland, psykiatriske sygehuse.
B2: Skema 6: Udgifter til andet end patientbehandling. (1.000 kr.)
A5: Sygehus | C5: 2023 | D5: 2022 | E5: 2021 | F5: 2020 | G5: Δ2022-2023 | H5: % afvigelse | I5: Begrundelse
A6: Region Sjælland, Voksen psykiatrien
A7: Region Sjælland, Voksen psykiatrien | B7: Skema 6.1: Center for voldsramte (Bispebjerg) | G7: =IF(ISERROR(C7- D7)=TRUE,"",C7 - D7) -> 0 | H7: =IF(ISERROR((((C7- D7)/D7)*100)=TRUE),"",IF((((C7- D7)/D7)*100)<-7,FIXED(((C7- D7)/D7)*100, 1,TRUE) &"%" & "▼",IF((((C7- D7)/D7)*100)>7,FIXED(((C7- D7)/D7)*100, 1,TRUE) &"%" &"▲",FIXED(((C7- D7)/D7)*100, 1,TRUE)&"%"))) -> 
A8: Region Sjælland, Voksen psykiatrien | B8: Skema 6.2: Ventilatørbistand i hjemmet, respiratorpatienter | G8: 0
A9: Region Sjælland, Voksen psykiatrien | B9: Skema 6.3: Blodprøvetagning i eget hjem | G9: 0
A10: Region Sjælland, Voksen psykiatrien | B10: Skema 6.4: Psykinfo + pårørende | C10: =8883+425 -> 9308 | D10: =9566+1063 -> 10629 | E10: =9285+8 -> 9293 | F10: =9079+504 -> 9583 | G10: -1321 | H10: -12,4%▼ | I10: LUP Psykiatri 2021/2022 bogført i 2022
A11: Region Sjælland, Voksen psykiatrien | B11: Skema 6.5: Leveret udstyr til patienter i eget hjem, ilt og sonderemedier | G11: 0
A12: Region Sjælland, Voksen psykiatrien | B12: Skema 6.6: Montebello (Nordsjællands Hospitaler) | G12: 0
A13: Region Sjælland, Voksen psykiatrien | B13: Skema 6.7: Satspulje korrektioner mellem år | G13: 0
A14: Region Sjælland, Voksen psykiatrien | B14: Skema 6.8: Klinisk farmakologisk rådgivning af praksissektoren | G14: 0
A15: Region Sjælland, Voksen psykiatrien | B15: Skema 6.9: Tandregulering ifm. operation | G15: 0
A16: Region Sjælland, Voksen psykiatrien | B16: Skema 6.10: Giftlinjen | G16: 0
A17: Region Sjælland, Voksen psykiatrien | B17: Skema 6.11: Tjenestemandspensioner | G17: 0
A18: Region Sjælland, Voksen psykiatrien | B18: Skema 6.12: Art 4.6 Betalinger til staten | G18: 0
A19: Region Sjælland, Voksen psykiatrien | B19: Skema 6.13: Art 4.7 Betalinger til kommuner | G19: 0
A20: Region Sjælland, Voksen psykiatrien | B20: Skema 6.14: Art 4.8 Betalinger til andre regioner | G20: 0
A21: Region Sjælland, Voksen psykiatrien | B21: Skema 6.15: Art 7.6 Betalinger fra staten | G21: 0
A22: Region Sjælland, Voksen psykiatrien | B22: Skema 6.16: Art 7.7 Betalinger fra kommuner | G22: 0
A23: Region Sjælland, Voksen psykiatrien | B23: Skema 6.17: Art 7.8 Betalinger fra andre regioner | G23: 0
A24: Region Sjælland, Voksen psykiatrien | B24: Skema 6.18: Betalinger til selvejende, private og udenlandske sygehuse | G24: 0
A25: Region Sjælland, Voksen psykiatrien | B25: Skema 6.19: Dækningsafgift/ejendomsskat | C25: =2753+39 -> 2792 | D25: =2710+39 -> 2749 | E25: =2705+27 -> 2732 | F25: =2714+36 -> 2750 | G25: 43 | H25: 1,6%
A26: Region Sjælland, Voksen psykiatrien | B26: Skema 6.20: Forsikringer/erstatninger | C26: =6012+303 -> 6315 | D26: =4887+305 -> 5192 | E26: =5195+366 -> 5561 | F26: =5474+368 -> 5842 | G26: 1123 | H26: 21,6%▲ | I26: Bogført udgift
A27: Region Sjælland, Voksen psykiatrien | B27: Skema 6.21: Vederlagsfri Lab. –ydelser og andre ydelser til praksissektoren | G27: 0
A28: Region Sjælland, Voksen psykiatrien | B28: Skema 6.22: Patienttransport | C28: 129 | D28: 121 | E28: 144 | F28: 99 | G28: 8 | H28: 6,6%
A29: Region Sjælland, Voksen psykiatrien | B29: Skema 6.23: Serviceydelser til/fra andre institutioner eller sygehuse udenfor regionen | G29: 0
A30: Region Sjælland, Voksen psykiatrien | B30: Skema 6.24: Udgifter til eksternt finansierede forskning | G30: 0
A31: Region Sjælland, Voksen psykiatrien | B31: Skema 6.25: Forebyggelse rettet mod praksissektoren og kommuner | G31: 0
A32: Region Sjælland, Voksen psykiatrien | B32: Skema 6.26: Praksisreservelæger | G32: 0
A33: Region Sjælland, Voksen psykiatrien | B33: Skema 6.27: Præhospital | G33: 0
A34: Region Sjælland, Voksen psykiatrien | B34: Skema 6.28: Udgifter til Danske Regioner (Kontigent, MedCom, Fællesproj.) | C34: 377 | D34: 369 | E34: 368 | F34: 567 | G34: 8 | H34: 2,2%
A35: Region Sjælland, Voksen psykiatrien | B35: Skema 6.29: Hospice | G35: 0
A36: Region Sjælland, Voksen psykiatrien | B36: Skema 6.30: Konsulenter(Praksis) | G36: 0
A37: Region Sjælland, Voksen psykiatrien | B37: Skema 6.31: Videnskabsetisk Komité | G37: 0
A38: Region Sjælland, Voksen psykiatrien | B38: Skema 6.32: Tolkebistand | C38: 580 | D38: 583 | E38: 629 | F38: 686 | G38: -3 | H38: -0,5%
A39: Region Sjælland, Voksen psykiatrien | B39: Skema 6.33: Dansk Center for Partikelterapi | G39: =IF(ISERROR(C39- D39)=TRUE,"",C39 - D39) -> 0 | H39: =IF(ISERROR((((C39- D39)/D39)*100)=TRUE),"",IF((((C39- D39)/D39)*100)<-7,FIXED(((C39- D39)/D39)*100, 1,TRUE) &"%" & "▼",IF((((C39- D39)/D39)*100)>7,FIXED(((C39- D39)/D39)*100, 1,TRUE) &"%" &"▲",FIXED(((C39- D39)/D39)*100, 1,TRUE)&"%"))) -> 
A40: Region Sjælland, Voksen psykiatrien | B40: Skema 6.34: Politisk organisation – overførte udgifter fra funktion 4.10.01, 4.10.02 og 4.10.04 | G40: 0
A41: Region Sjælland, Voksen psykiatrien | B41: Skema 6.35: Øvrige udgifter, Region Sjælland | G41: 0
A42: Region Sjælland, Voksen psykiatrien | B42: Skema 6.36: Sundhedsydelser ifm. specialsektor | G42: 0
A43: Region Sjælland, Voksen psykiatrien | B43: Skema 6.37: Udgifter til primær sundhed fra skema 2 | G43: 0
A44: Region Sjælland, Voksen psykiatrien | B44: Skema 6.38: Udgifter til primær sundhed fra skema 3 | G44: 0
A45: Region Sjælland, Voksen psykiatrien | B45: Skema 6.39: Særlige udgifter ifm. COVID-19 | C45: 0 | D45: =15958*83.22% -> 13280.2476 | E45: =16766*83.31% -> 13967.7546 | F45: 3097 | G45: -13280.2476 | H45: -100,0%▼ | I45: Ingen udgifter i 2023
A46: Region Sjælland, Voksen psykiatrien | B46: Skema 6.40: Udleveret udstyr/tilbehør ifm. cochlear implantater | G46: 0
A47: Region Sjælland, Voksen psykiatrien | B47: Skema 6.41: Luxturna-behandling, Rigshospitalet | G47: 0
A48: Region Sjælland, Voksen psykiatrien | B48: Skema 6.42: Udleveret medicin | C48: 16968 | D48: =19361*83.22% -> 16112.2242 | E48: =19598*83.31% -> 16327.0938 | G48: 855.7758 | H48: 5,3%
A49: Region Sjælland, Voksen psykiatrien | B49: Skema 6.43: Udgifter ifm. sundhedsklynger | G49: 0
A50: Region Sjælland, Voksen psykiatrien | B50: Skema 6.44: Ukrainske patienter under særlov eller asyl | G50: 0
A51: Region Sjælland, Voksen psykiatrien | B51: Skema 6.45: Udgifter ifm. de særlige pladser i psykiatrien | C51: 35038 | G51: 35038 | I51: Direkte udgifter og indirekte udgifter vedr. fællesudgifter, beregnet forholdsmæssigt.
A52: Region Sjælland, Voksen psykiatrien | B52: Skema 6.46: Sikringsafdelingen, Region Sjælland | C52: 96850 | G52: 96850
A53: Region Sjælland, Voksen psykiatrien | B53: Skema 6.47: Øvrige (Kan kun benyttes efter aftale med Sundhedsdatastyrelsen) | G53: 0
A54: Region Sjælland, Voksen psykiatrien | B54: Lukkede poster (må kun bruges af Sundhedsdatastyrelsen) | G54: 0
A55: Region Sjælland, Voksen psykiatrien | B55: I alt | C55: =SUMIFS((C7:C54),(A7:A54),A55) -> 168357 | D55: =SUMIFS((D7:D54),(A7:A54),A55) -> 49035.4718 | E55: =SUMIFS((E7:E54),(A7:A54),A55) -> 49021.8484 | F55: =SUMIFS((F7:F54),(A7:A54),A55) -> 22624 | G55: 119321.5282 | H55: 243,3%▲
A56: Region Sjælland, Børn-unge psykiatrien | G56: 0
A57: Region Sjælland, Børn-unge psykiatrien | B57: Skema 6.1: Center for voldsramte (Bispebjerg) | G57: 0
A58: Region Sjælland, Børn-unge psykiatrien | B58: Skema 6.2: Ventilatørbistand i hjemmet, respiratorpatienter | G58: 0
A59: Region Sjælland, Børn-unge psykiatrien | B59: Skema 6.3: Blodprøvetagning i eget hjem | G59: 0
A60: Region Sjælland, Børn-unge psykiatrien | B60: Skema 6.4: Psykinfo + pårørende | C60: =1805+86 -> 1891 | D60: =1929+214 -> 2143 | E60: =1860+2 -> 1862 | F60: =1687+94 -> 1781 | G60: -252 | H60: -11,8%▼ | I60: Almindelige udsving
A61: Region Sjælland, Børn-unge psykiatrien | B61: Skema 6.5: Leveret udstyr til patienter i eget hjem, ilt og sonderemedier | G61: 0
A62: Region Sjælland, Børn-unge psykiatrien | B62: Skema 6.6: Montebello (Nordsjællands Hospitaler) | G62: 0
A63: Region Sjælland, Børn-unge psykiatrien | B63: Skema 6.7: Satspulje korrektioner mellem år | G63: 0
A64: Region Sjælland, Børn-unge psykiatrien | B64: Skema 6.8: Klinisk farmakologisk rådgivning af praksissektoren | G64: 0
A65: Region Sjælland, Børn-unge psykiatrien | B65: Skema 6.9: Tandregulering ifm. operation | G65: 0
A66: Region Sjælland, Børn-unge psykiatrien | B66: Skema 6.10: Giftlinjen | G66: 0
A67: Region Sjælland, Børn-unge psykiatrien | B67: Skema 6.11: Tjenestemandspensioner | G67: 0
A68: Region Sjælland, Børn-unge psykiatrien | B68: Skema 6.12: Art 4.6 Betalinger til staten | G68: 0
A69: Region Sjælland, Børn-unge psykiatrien | B69: Skema 6.13: Art 4.7 Betalinger til kommuner | G69: 0
A70: Region Sjælland, Børn-unge psykiatrien | B70: Skema 6.14: Art 4.8 Betalinger til andre regioner | G70: 0
A71: Region Sjælland, Børn-unge psykiatrien | B71: Skema 6.15: Art 7.6 Betalinger fra staten | G71: =IF(ISERROR(C71- D71)=TRUE,"",C71 - D71) -> 0 | H71: =IF(ISERROR((((C71- D71)/D71)*100)=TRUE),"",IF((((C71- D71)/D71)*100)<-7,FIXED(((C71- D71)/D71)*100, 1,TRUE) &"%" & "▼",IF((((C71- D71)/D71)*100)>7,FIXED(((C71- D71)/D71)*100, 1,TRUE) &"%" &"▲",FIXED(((C71- D71)/D71)*100, 1,TRUE)&"%"))) -> 
A72: Region Sjælland, Børn-unge psykiatrien | B72: Skema 6.16: Art 7.7 Betalinger fra kommuner | G72: 0
A73: Region Sjælland, Børn-unge psykiatrien | B73: Skema 6.17: Art 7.8 Betalinger fra andre regioner | G73: 0
A74: Region Sjælland, Børn-unge psykiatrien | B74: Skema 6.18: Betalinger til selvejende, private og udenlandske sygehuse | G74: 0
A75: Region Sjælland, Børn-unge psykiatrien | B75: Skema 6.19: Dækningsafgift/ejendomsskat | C75: =559+8 -> 567 | D75: =546+8 -> 554 | E75: =542+6 -> 548 | F75: =504+7 -> 511 | G75: 13 | H75: 2,3%
A76: Region Sjælland, Børn-unge psykiatrien | B76: Skema 6.20: Forsikringer/erstatninger | C76: =1215+62 -> 1277 | D76: =979+62 -> 1041 | E76: =1035+73 -> 1108 | F76: =970+68 -> 1038 | G76: 236 | H76: 22,7%▲ | I76: Bogført udgift
A77: Region Sjælland, Børn-unge psykiatrien | B77: Skema 6.21: Vederlagsfri Lab. –ydelser og andre ydelser til praksissektoren | G77: 0
A78: Region Sjælland, Børn-unge psykiatrien | B78: Skema 6.22: Patienttransport | C78: 9 | E78: 8 | F78: 7 | G78: 9
A79: Region Sjælland, Børn-unge psykiatrien | B79: Skema 6.23: Serviceydelser til/fra andre institutioner eller sygehuse udenfor regionen | G79: 0
A80: Region Sjælland, Børn-unge psykiatrien | B80: Skema 6.24: Udgifter til eksternt finansierede forskning | G80: 0
A81: Region Sjælland, Børn-unge psykiatrien | B81: Skema 6.25: Forebyggelse rettet mod praksissektoren og kommuner | G81: 0
A82: Region Sjælland, Børn-unge psykiatrien | B82: Skema 6.26: Praksisreservelæger | G82: 0
A83: Region Sjælland, Børn-unge psykiatrien | B83: Skema 6.27: Præhospital | G83: 0
A84: Region Sjælland, Børn-unge psykiatrien | B84: Skema 6.28: Udgifter til Danske Regioner (Kontigent, MedCom, Fællesproj.) | C84: 77 | D84: 74 | E84: 74 | F84: 105 | G84: 3 | H84: 4,1%
A85: Region Sjælland, Børn-unge psykiatrien | B85: Skema 6.29: Hospice | G85: 0
A86: Region Sjælland, Børn-unge psykiatrien | B86: Skema 6.30: Konsulenter(Praksis) | G86: 0
A87: Region Sjælland, Børn-unge psykiatrien | B87: Skema 6.31: Videnskabsetisk Komité | G87: 0
A88: Region Sjælland, Børn-unge psykiatrien | B88: Skema 6.32: Tolkebistand | C88: 81 | D88: 81 | E88: 87 | F88: 71 | G88: 0 | H88: 0,0%
A89: Region Sjælland, Børn-unge psykiatrien | B89: Skema 6.33: Dansk Center for Partikelterapi | G89: 0
A90: Region Sjælland, Børn-unge psykiatrien | B90: Skema 6.34: Politisk organisation – overførte udgifter fra funktion 4.10.01, 4.10.02 og 4.10.04 | G90: 0
A91: Region Sjælland, Børn-unge psykiatrien | B91: Skema 6.35: Øvrige udgifter, Region Sjælland | G91: 0
A92: Region Sjælland, Børn-unge psykiatrien | B92: Skema 6.36: Sundhedsydelser ifm. specialsektor | G92: 0
A93: Region Sjælland, Børn-unge psykiatrien | B93: Skema 6.37: Udgifter til primær sundhed fra skema 2 | G93: 0
A94: Region Sjælland, Børn-unge psykiatrien | B94: Skema 6.38: Udgifter til primær sundhed fra skema 3 | G94: 0
A95: Region Sjælland, Børn-unge psykiatrien | B95: Skema 6.39: Særlige udgifter ifm. COVID-19 | D95: =15958*16.78% -> 2677.7524 | E95: =16766*16.69% -> 2798.2454 | F95: 575 | G95: -2677.7524 | H95: -100,0%▼ | I95: Ingen udgifter i 2023
A96: Region Sjælland, Børn-unge psykiatrien | B96: Skema 6.40: Udleveret udstyr/tilbehør ifm. cochlear implantater | G96: 0
A97: Region Sjælland, Børn-unge psykiatrien | B97: Skema 6.41: Luxturna-behandling, Rigshospitalet | G97: 0
A98: Region Sjælland, Børn-unge psykiatrien | B98: Skema 6.42: Udleveret medicin | C98: 3448 | D98: =19361*16.78% -> 3248.7758 | E98: =19598*16.69% -> 3270.9062 | G98: 199.2242 | H98: 6,1% | I98: jfr.liste APO
A99: Region Sjælland, Børn-unge psykiatrien | B99: Skema 6.43: Udgifter ifm. sundhedsklynger | G99: 0
A100: Region Sjælland, Børn-unge psykiatrien | B100: Skema 6.44: Ukrainske patienter under særlov eller asyl | G100: 0
A101: Region Sjælland, Børn-unge psykiatrien | B101: Skema 6.45: Udgifter ifm. de særlige pladser i psykiatrien | G101: 0
A102: Region Sjælland, Børn-unge psykiatrien | B102: Skema 6.46: Sikringsafdelingen, Region Sjælland | G102: 0
A103: Region Sjælland, Børn-unge psykiatrien | B103: Skema 6.47: Øvrige (Kan kun benyttes efter aftale med Sundhedsdatastyrelsen) | G103: =IF(ISERROR(C103- D103)=TRUE,"",C103 - D103) -> 0 | H103: =IF(ISERROR((((C103- D103)/D103)*100)=TRUE),"",IF((((C103- D103)/D103)*100)<-7,FIXED(((C103- D103)/D103)*100, 1,TRUE) &"%" & "▼",IF((((C103- D103)/D103)*100)>7,FIXED(((C103- D103)/D103)*100, 1,TRUE) &"%" &"▲",FIXED(((C103- D103)/D103)*100, 1,TRUE)&"%"))) -> 
A104: Region Sjælland, Børn-unge psykiatrien | B104: Lukkede poster (må kun bruges af Sundhedsdatastyrelsen) | G104: 0
A105: Region Sjælland, Børn-unge psykiatrien | B105: I alt | C105: =SUMIFS((C7:C104),(A7:A104),A105) -> 7350 | D105: =SUMIFS((D7:D104),(A7:A104),A105) -> 9819.5282 | E105: =SUMIFS((E7:E104),(A7:A104),A105) -> 9756.1516 | F105: =SUMIFS((F7:F104),(A7:A104),A105) -> 4088 | G105: -2469.5282 | H105: -25,1%▼
A106: Ikke fordelte udgifter i Region Sjælland, psykiatri | G106: 0
A107: Ikke fordelte udgifter i Region Sjælland, psykiatri | B107: Skema 6.1: Center for voldsramte (Bispebjerg) | G107: 0
A108: Ikke fordelte udgifter i Region Sjælland, psykiatri | B108: Skema 6.2: Ventilatørbistand i hjemmet, respiratorpatienter | G108: 0
A109: Ikke fordelte udgifter i Region Sjælland, psykiatri | B109: Skema 6.3: Blodprøvetagning i eget hjem | G109: 0
A110: Ikke fordelte udgifter i Region Sjælland, psykiatri | B110: Skema 6.4: Psykinfo + pårørende | G110: 0
A111: Ikke fordelte udgifter i Region Sjælland, psykiatri | B111: Skema 6.5: Leveret udstyr til patienter i eget hjem, ilt og sonderemedier | G111: 0
A112: Ikke fordelte udgifter i Region Sjælland, psykiatri | B112: Skema 6.6: Montebello (Nordsjællands Hospitaler) | G112: 0
A113: Ikke fordelte udgifter i Region Sjælland, psykiatri | B113: Skema 6.7: Satspulje korrektioner mellem år | G113: 0
A114: Ikke fordelte udgifter i Region Sjælland, psykiatri | B114: Skema 6.8: Klinisk farmakologisk rådgivning af praksissektoren | G114: 0
A115: Ikke fordelte udgifter i Region Sjælland, psykiatri | B115: Skema 6.9: Tandregulering ifm. operation | G115: 0
A116: Ikke fordelte udgifter i Region Sjælland, psykiatri | B116: Skema 6.10: Giftlinjen | G116: 0
A117: Ikke fordelte udgifter i Region Sjælland, psykiatri | B117: Skema 6.11: Tjenestemandspensioner | G117: 0
A118: Ikke fordelte udgifter i Region Sjælland, psykiatri | B118: Skema 6.12: Art 4.6 Betalinger til staten | G118: 0
A119: Ikke fordelte udgifter i Region Sjælland, psykiatri | B119: Skema 6.13: Art 4.7 Betalinger til kommuner | G119: 0
A120: Ikke fordelte udgifter i Region Sjælland, psykiatri | B120: Skema 6.14: Art 4.8 Betalinger til andre regioner | C120: 39172.23995 | D120: 84614.14188 | E120: 80911.77739 | F120: 58242.43246 | G120: -45441.90193 | H120: -53,7%▼ | I120: Fald i udgifter skyldes primært regulering vedr. tidligere år på højt specialiseret samt udenregional basisbehandling
A121: Ikke fordelte udgifter i Region Sjælland, psykiatri | B121: Skema 6.15: Art 7.6 Betalinger fra staten | G121: 0
A122: Ikke fordelte udgifter i Region Sjælland, psykiatri | B122: Skema 6.16: Art 7.7 Betalinger fra kommuner | C122: -34670.1668 | D122: -25942.18 | E122: -28322.95697 | F122: -34104.0679 | G122: -8727.9868 | H122: 33,6%▲ | I122: Stigning vedr. primært takstindtægter på kommunal finansiering
A123: Ikke fordelte udgifter i Region Sjælland, psykiatri | B123: Skema 6.17: Art 7.8 Betalinger fra andre regioner | C123: -101815.436 | D123: -88099.8705 | E123: -95543.2285 | F123: -95371.80496 | G123: -13715.5655 | H123: 15,6%▲ | I123: Stigning i takstindtægter på Sikringen samt psykiatriske fritvalgs-patienter
A124: Ikke fordelte udgifter i Region Sjælland, psykiatri | B124: Skema 6.18: Betalinger til selvejende, private og udenlandske sygehuse | C124: 3220.66816 | D124: 2729.3003 | E124: 4085.68531 | F124: 4139.646 | G124: 491.36786 | H124: 18,0%▲ | I124: Skyldes en stigning i udgifterne til rehabilitering af torturofre
A125: Ikke fordelte udgifter i Region Sjælland, psykiatri | B125: Skema 6.19: Dækningsafgift/ejendomsskat | G125: 0
A126: Ikke fordelte udgifter i Region Sjælland, psykiatri | B126: Skema 6.20: Forsikringer/erstatninger | G126: 0
A127: Ikke fordelte udgifter i Region Sjælland, psykiatri | B127: Skema 6.21: Vederlagsfri Lab. –ydelser og andre ydelser til praksissektoren | G127: 0
A128: Ikke fordelte udgifter i Region Sjælland, psykiatri | B128: Skema 6.22: Patienttransport | G128: 0
A129: Ikke fordelte udgifter i Region Sjælland, psykiatri | B129: Skema 6.23: Serviceydelser til/fra andre institutioner eller sygehuse udenfor regionen | G129: 0
A130: Ikke fordelte udgifter i Region Sjælland, psykiatri | B130: Skema 6.24: Udgifter til eksternt finansierede forskning | G130: 0
A131: Ikke fordelte udgifter i Region Sjælland, psykiatri | B131: Skema 6.25: Forebyggelse rettet mod praksissektoren og kommuner | G131: 0
A132: Ikke fordelte udgifter i Region Sjælland, psykiatri | B132: Skema 6.26: Praksisreservelæger | G132: 0
A133: Ikke fordelte udgifter i Region Sjælland, psykiatri | B133: Skema 6.27: Præhospital | G133: 0
A134: Ikke fordelte udgifter i Region Sjælland, psykiatri | B134: Skema 6.28: Udgifter til Danske Regioner (Kontigent, MedCom, Fællesproj.) | G134: 0
A135: Ikke fordelte udgifter i Region Sjælland, psykiatri | B135: Skema 6.29: Hospice | G135: =IF(ISERROR(C135- D135)=TRUE,"",C135 - D135) -> 0 | H135: =IF(ISERROR((((C135- D135)/D135)*100)=TRUE),"",IF((((C135- D135)/D135)*100)<-7,FIXED(((C135- D135)/D135)*100, 1,TRUE) &"%" & "▼",IF((((C135- D135)/D135)*100)>7,FIXED(((C135- D135)/D135)*100, 1,TRUE) &"%" &"▲",FIXED(((C135- D135)/D135)*100, 1,TRUE)&"%"))) -> 
A136: Ikke fordelte udgifter i Region Sjælland, psykiatri | B136: Skema 6.30: Konsulenter(Praksis) | G136: 0
A137: Ikke fordelte udgifter i Region Sjælland, psykiatri | B137: Skema 6.31: Videnskabsetisk Komité | G137: 0
A138: Ikke fordelte udgifter i Region Sjælland, psykiatri | B138: Skema 6.32: Tolkebistand | G138: 0
A139: Ikke fordelte udgifter i Region Sjælland, psykiatri | B139: Skema 6.33: Dansk Center for Partikelterapi | G139: 0
A140: Ikke fordelte udgifter i Region Sjælland, psykiatri | B140: Skema 6.34: Politisk organisation – overførte udgifter fra funktion 4.10.01, 4.10.02 og 4.10.04 | G140: 0
A141: Ikke fordelte udgifter i Region Sjælland, psykiatri | B141: Skema 6.35: Øvrige udgifter, Region Sjælland | G141: 0
A142: Ikke fordelte udgifter i Region Sjælland, psykiatri | B142: Skema 6.36: Sundhedsydelser ifm. specialsektor | G142: 0
A143: Ikke fordelte udgifter i Region Sjælland, psykiatri | B143: Skema 6.37: Udgifter til primær sundhed fra skema 2 | C143: 1274.792595 | G143: 1274.792595 | I143: Administrative covid-udgifter
A144: Ikke fordelte udgifter i Region Sjælland, psykiatri | B144: Skema 6.38: Udgifter til primær sundhed fra skema 3 | G144: 0
A145: Ikke fordelte udgifter i Region Sjælland, psykiatri | B145: Skema 6.39: Særlige udgifter ifm. COVID-19 | D145: 2428.590033 | E145: 3116.12876 | F145: 1946.24668 | G145: -2428.590033 | H145: -100,0%▼ | I145: Ikke relevant længere
A146: Ikke fordelte udgifter i Region Sjælland, psykiatri | B146: Skema 6.40: Udleveret udstyr/tilbehør ifm. cochlear implantater | G146: 0
A147: Ikke fordelte udgifter i Region Sjælland, psykiatri | B147: Skema 6.41: Luxturna-behandling, Rigshospitalet | G147: 0
A148: Ikke fordelte udgifter i Region Sjælland, psykiatri | B148: Skema 6.42: Udleveret medicin | G148: 0
A149: Ikke fordelte udgifter i Region Sjælland, psykiatri | B149: Skema 6.43: Udgifter ifm. sundhedsklynger | G149: 0
A150: Ikke fordelte udgifter i Region Sjælland, psykiatri | B150: Skema 6.44: Ukrainske patienter under særlov eller asyl | G150: 0
A151: Ikke fordelte udgifter i Region Sjælland, psykiatri | B151: Skema 6.45: Udgifter ifm. de særlige pladser i psykiatrien | G151: 0
A152: Ikke fordelte udgifter i Region Sjælland, psykiatri | B152: Skema 6.46: Sikringsafdelingen, Region Sjælland | G152: 0
A153: Ikke fordelte udgifter i Region Sjælland, psykiatri | B153: Skema 6.47: Øvrige (Kan kun benyttes efter aftale med Sundhedsdatastyrelsen) | G153: 0
A154: Ikke fordelte udgifter i Region Sjælland, psykiatri | B154: Lukkede poster (må kun bruges af Sundhedsdatastyrelsen) | G154: 0
A155: Ikke fordelte udgifter i Region Sjælland, psykiatri | B155: I alt | C155: =SUMIFS((C7:C154),(A7:A154),A155) -> -92817.9021 | D155: =SUMIFS((D7:D154),(A7:A154),A155) -> -24270.01829 | E155: =SUMIFS((E7:E154),(A7:A154),A155) -> -35752.59401 | F155: =SUMIFS((F7:F154),(A7:A154),A155) -> -65147.54772 | G155: -68547.88381 | H155: 282,4%▲

Sheet Skema 7
A1: Region Sjælland, psykiatriske sygehuse.
B2: Skema 7: Vederlagsfrie ydelser mellem sygehusene. (1.000 kr.)
A5: Sygehus | B5: 2023 | D5: 2023 | E5: 2022 | G5: 2022 | H5: 2021 | J5: 2021 | K5: 2020 | M5: 2020
B6: Leverede | C6: Modtagne | D6: Lev. - Mod. | E6: Leverede | F6: Modtagne | G6: Lev. - Mod. | H6: Leverede | I6: Modtagne | J6: Lev. - Mod. | K6: Leverede | L6: Modtagne | M6: Lev. - Mod.
A7: Region Sjælland. Voksen psykiatrien | C7: 7031 | D7: =$B$7-$C$7 -> -7031 | F7: 7520 | G7: =$E$7-$F$7 -> -7520 | I7: =8698*83.31% -> 7246.3038 | J7: =$H$7-$I$7 -> -7246.3038 | L7: =8482*84.33% -> 7152.8706 | M7: =$K$7-$L$7 -> -7152.8706
A8: Region Sjælland. Børn-unge psykiatrien | C8: 1429 | D8: =$B$8-$C$8 -> -1429 | F8: 1516 | G8: =$E$8-$F$8 -> -1516 | I8: =8698*16.69% -> 1451.6962 | J8: =$H$8-$I$8 -> -1451.6962 | L8: =8482*15.67% -> 1329.1294 | M8: =$K$8-$L$8 -> -1329.1294
A9: Ikke fordelte udgifter i Region Sjælland, psykiatri | D9: =$B$9-$C$9 -> 0 | G9: =$E$9-$F$9 -> 0 | J9: =$H$9-$I$9 -> 0 | M9: =$K$9-$L$9 -> 0
A10: I alt | B10: =SUM(B7:B9) -> 0 | C10: =SUM(C7:C9) -> 8460 | D10: =SUM(D7:D9) -> -8460 | E10: =SUM(E7:E9) -> 0 | F10: 9036 | G10: -9036 | H10: 0 | I10: 8698 | J10: -8698 | K10: =SUM(K7:K9) -> 0 | L10: 8482 | M10: -8482
A12: NB: Afstem med somatikken

Sheet Rapport
B2: Skema 1: Udgifter og indtægter på sygehusene/enhederne, eksklusiv omkostningssted 0001, Fælleskonto. (1.000 kr.)
C3: 2023 | D3: 2022 | E3: 2021 | F3: 2020
B4: Hovedart 1: Lønninger | C4: 0 | D4: 1130515 | E4: 1068474 | F4: 1020577
B5: Hovedart 2: Varekøb | C5: 0 | D5: 42621 | E5: 43678 | F5: 53192
B6: Hovedart 4: Tjenesteydelser m.v. | C6: 0 | D6: 197456 | E6: 203743 | F6: 192656
B7: Hovedart 5: Tilskud og overførsler | C7: 0 | D7: 224 | E7: 47 | F7: 168
B8: Hovedart 6: Finansudgifter | C8: 0 | D8: 0 | E8: 0 | F8: -165
B9: Hovedart 7: Indtægter | C9: 0 | D9: -33902 | E9: -35239 | F9: -35448
B10: Hovedart 8: Finansindtægter | C10: 0 | D10: 0 | E10: 0 | F10: 0
B11: Hovedart 9: Interne udgifter og indtægter | C11: 0 | D11: 81208 | E11: 80192 | F11: 82984
B12: I alt | C12: 0 | D12: 1418122 | E12: 1360895 | F12: 1313964
B14: Skema 2: Fællesudgifter og -indtægter vedrørende sygehusene. (1.000 kr.)
C15: 2023 | D15: 2022 | E15: 2021 | F15: 2020
B16: Hovedart 1: Lønninger | C16: 0 | D16: 44631.63569 | E16: 53789.4616 | F16: 50703.72689
B17: Hovedart 2: Varekøb | C17: 0 | D17: 164128.0296 | E17: 160645.2319 | F17: 161458.5727
B18: Hovedart 4: Tjenesteydelser m.v. | C18: 0 | D18: 142116.3064 | E18: 141159.737 | F18: 115805.0731
B19: Hovedart 5: Tilskud og overførsler | C19: 0 | D19: 0 | E19: 158.2620652 | F19: 159.20407
B20: Hovedart 6: Finansudgifter | C20: 0 | D20: 0 | E20: 0 | F20: -21.29715
B21: Hovedart 7: Indtægter | C21: 0 | D21: -133485.8972 | E21: -144566.4541 | F21: -146922.9626
B22: Hovedart 8: Finansindtægter | C22: 0 | D22: 0 | E22: 0 | F22: 0
B23: Hovedart 9: Interne udgifter og indtægter | C23: 0 | D23: -182875.3113 | E23: -187850.2232 | F23: -190217.9152
B24: I alt | C24: 0 | D24: 34514.7632 | E24: 23336.01529 | F24: -9035.59827
B26: Skema 3:Regionale fællesudgifter og -indtægter. (1.000 kr.)
C27: 2023 | D27: 2022 | E27: 2021 | F27: 2020
B28: 1.70.50: Andel af fællesudgifter | C28: 0 | D28: 78120.02315 | E28: 73415.14654 | F28: 70588.34376
B29: 1.60.40: Andel af central administration af sundhed (til og med 2019) | C29: 0 | D29: 0 | E29: 0 | F29: 0
B30: 1.60.41: Andel af øvrige udgifter og indtægter | C30: 0 | D30: 0 | E30: 0 | F30: 0
B31: 1.50.33: Andel af central administration af sundhed (ekskl. psykiatri) | C31: 0 | D31: 0 | E31: 0 | F31: 0
B32: 1.50.35: Administration af det psykiatriske område (kun central del) | C32: 0 | D32: 0 | E32: 0 | F32: 0
B33: I alt | C33: 0 | D33: 78120.02315 | E33: 73415.14654 | F33: 70588.34376
B35: Skema 4: Udgifter og indtægter til og fra psykiatriske afdelinger konteret på somatiske sygehuse. (1.000 kr.)
C36: 2023 | D36: 2022 | E36: 2021 | F36: 2020
B37: Korrektion | C37: 0 | D37: 0 | E37: 0 | F37: 0
B38: Lønudg. på psyk. afd.,somatiske sygehuse | C38: 0 | D38: 0 | E38: 0 | F38: 0
B39: Øvrige udg. til psyk. afd.,somatiske sygehuse | C39: 0 | D39: 0 | E39: 0 | F39: 0
B40: I alt | C40: 0 | D40: 0 | E40: 0 | F40: 0
B42: Skema 5: Leasing- og huslejeudgifter. (1.000 kr.)
C43: 2023 | D43: 2022 | E43: 2021 | F43: 2020
B44: Andre udgifter | C44: 0 | D44: 0 | E44: 0 | F44: 0
B45: Leasing- og lejeudgifter | C45: 0 | D45: 2863 | E45: 1007 | F45: 1035
B46: Huslejeudgifter | C46: 0 | D46: 7761 | E46: 6750 | F46: 5330
B47: I alt | C47: 0 | D47: 10624 | E47: 7757 | F47: 6365
B49: Skema 6: Udgifter til andet end patientbehandling. (1.000 kr.)
C50: 2023 | D50: 2022 | E50: 2021 | F50: 2020
B51: Skema 6.1: Center for voldsramte (Bispebjerg) | C51: 0 | D51: 0 | E51: 0 | F51: 0
B52: Skema 6.2: Ventilatørbistand i hjemmet, respiratorpatienter | C52: 0 | D52: 0 | E52: 0 | F52: 0
B53: Skema 6.3: Blodprøvetagning i eget hjem | C53: 0 | D53: 0 | E53: 0 | F53: 0
B54: Skema 6.4: Psykinfo + pårørende | C54: 0 | D54: 12772 | E54: 11155 | F54: 11364
B55: Skema 6.5: Leveret udstyr til patienter i eget hjem, ilt og sonderemedier | C55: 0 | D55: 0 | E55: 0 | F55: 0
B56: Skema 6.6: Montebello (Nordsjællands Hospitaler) | C56: 0 | D56: 0 | E56: 0 | F56: 0
B57: Skema 6.7: Satspulje korrektioner mellem år | C57: 0 | D57: 0 | E57: 0 | F57: 0
B58: Skema 6.8: Klinisk farmakologisk rådgivning af praksissektoren | C58: 0 | D58: 0 | E58: 0 | F58: 0
B59: Skema 6.9: Tandregulering ifm. operation | C59: 0 | D59: 0 | E59: 0 | F59: 0
B60: Skema 6.10: Giftlinjen | C60: 0 | D60: 0 | E60: 0 | F60: 0
B61: Skema 6.11: Tjenestemandspensioner | C61: 0 | D61: 0 | E61: 0 | F61: 0
B62: Skema 6.12: Art 4.6 Betalinger til staten | C62: 0 | D62: 0 | E62: 0 | F62: 0
B63: Skema 6.13: Art 4.7 Betalinger til kommuner | C63: 0 | D63: 0 | E63: 0 | F63: 0
B64: Skema 6.14: Art 4.8 Betalinger til andre regioner | C64: 0 | D64: 84614.14188 | E64: 80911.77739 | F64: 58242.43246
B65: Skema 6.15: Art 7.6 Betalinger fra staten | C65: 0 | D65: 0 | E65: 0 | F65: 0
B66: Skema 6.16: Art 7.7 Betalinger fra kommuner | C66: 0 | D66: -25942.18 | E66: -28322.95697 | F66: -34104.0679
B67: Skema 6.17: Art 7.8 Betalinger fra andre regioner | C67: 0 | D67: -88099.8705 | E67: -95543.2285 | F67: -95371.80496
B68: Skema 6.18: Betalinger til selvejende, private og udenlandske sygehuse | C68: 0 | D68: 2729.3003 | E68: 4085.68531 | F68: 4139.646
B69: Skema 6.19: Dækningsafgift/ejendomsskat | C69: 0 | D69: 3303 | E69: 3280 | F69: 3261
B70: Skema 6.20: Forsikringer/erstatninger | C70: 0 | D70: 6233 | E70: 6669 | F70: 6880
B71: Skema 6.21: Vederlagsfri Lab. –ydelser og andre ydelser til praksissektoren | C71: 0 | D71: 0 | E71: 0 | F71: 0
B72: Skema 6.22: Patienttransport | C72: 0 | D72: 121 | E72: 152 | F72: 106
B73: Skema 6.23: Serviceydelser til/fra andre institutioner eller sygehuse udenfor regionen | C73: 0 | D73: 0 | E73: 0 | F73: 0
B74: Skema 6.24: Udgifter til eksternt finansierede forskning | C74: 0 | D74: 0 | E74: 0 | F74: 0
B75: Skema 6.25: Forebyggelse rettet mod praksissektoren og kommuner | C75: 0 | D75: 0 | E75: 0 | F75: 0
B76: Skema 6.26: Praksisreservelæger | C76: 0 | D76: 0 | E76: 0 | F76: 0
B77: Skema 6.27: Præhospital | C77: 0 | D77: 0 | E77: 0 | F77: 0
B78: Skema 6.28: Udgifter til Danske Regioner (Kontigent, MedCom, Fællesproj.) | C78: 0 | D78: 443 | E78: 442 | F78: 672
B79: Skema 6.29: Hospice | C79: 0 | D79: 0 | E79: 0 | F79: 0
B80: Skema 6.30: Konsulenter(Praksis) | C80: 0 | D80: 0 | E80: 0 | F80: 0
B81: Skema 6.31: Videnskabsetisk Komité | C81: 0 | D81: 0 | E81: 0 | F81: 0
B82: Skema 6.32: Tolkebistand | C82: 0 | D82: 664 | E82: 716 | F82: 757
B83: Skema 6.33: Dansk Center for Partikelterapi | C83: 0 | D83: 0 | E83: 0 | F83: 0
B84: Skema 6.34: Politisk organisation – overførte udgifter fra funktion 4.10.01, 4.10.02 og 4.10.04 | C84: 0 | D84: 0 | E84: 0 | F84: 0
B85: Skema 6.35: Øvrige udgifter, Region Sjælland | C85: 0 | D85: 0 | E85: 0 | F85: 0
B86: Skema 6.36: Sundhedsydelser ifm. specialsektor | C86: 0 | D86: 0 | E86: 0 | F86: 0
B87: Skema 6.37: Udgifter til primær sundhed fra skema 2 | C87: 0 | D87: 0 | E87: 0 | F87: 0
B88: Skema 6.38: Udgifter til primær sundhed fra skema 3 | C88: 0 | D88: 0 | E88: 0 | F88: 0
B89: Skema 6.39: Særlige udgifter ifm. COVID-19 | C89: 0 | D89: 18386.59003 | E89: 19882.12876 | F89: 5618.24668
B90: Skema 6.40: Udleveret udstyr/tilbehør ifm. cochlear implantater | C90: 0 | D90: 0 | E90: 0 | F90: 0
B91: Skema 6.41: Luxturna-behandling, Rigshospitalet | C91: 0 | D91: 0 | E91: 0 | F91: 0
B92: Skema 6.42: Udleveret medicin | C92: 0 | D92: 19361 | E92: 19598 | F92: 0
B93: Skema 6.43: Udgifter ifm. sundhedsklynger | C93: 0 | D93: 0 | E93: 0 | F93: 0
B94: Skema 6.44: Ukrainske patienter under særlov eller asyl | C94: 0 | D94: 0 | E94: 0 | F94: 0
B95: Skema 6.45: Udgifter ifm. de særlige pladser i psykiatrien | C95: 0 | D95: 0 | E95: 0 | F95: 0
B96: Skema 6.46: Sikringsafdelingen, Region Sjælland | C96: 0 | D96: 0 | E96: 0 | F96: 0
B97: Skema 6.47: Øvrige (Kan kun benyttes efter aftale med Sundhedsdatastyrelsen) | C97: 0 | D97: 0 | E97: 0 | F97: 0
B98: Lukkede poster (må kun bruges af Sundhedsdatastyrelsen) | C98: 0 | D98: 0 | E98: 0 | F98: 0
B99: I alt | C99: 0 | D99: 34584.98171 | E99: 23025.40599 | F99: -38435.54772

Sheet Rapport SGH
A1: 2023 | B1: Skema 1 | C1: Skema 2 | D1: Skema 3 | E1: Skema 4 | F1: Skema 5 | G1: Skema 6 | H1: Skema 7 | I1: I alt
A2: Region Sjælland, Voksen psykiatrien | B2: 0 | C2: 0 | D2: 0 | E2: 0 | F2: 0 | G2: 0 | H2: 0 | I2: =SUM(B2:D2)-SUM(E2:H2) -> 0
A3: Region Sjælland, Børn-unge psykiatrien | B3: 0 | C3: 0 | D3: 0 | E3: 0 | F3: 0 | G3: 0 | H3: 0 | I3: =SUM(B3:D3)-SUM(E3:H3) -> 0
A4: Ikke fordelte udgifter i Region Sjælland, psykiatri | B4: 0 | C4: 0 | D4: 0 | E4: 0 | F4: 0 | G4: 0 | H4: 0 | I4: 0
A6: 2022
A7: Region Sjælland, Voksen psykiatrien | B7: 1180225 | C7: 48920.69515 | D7: 65073.26173 | E7: 0 | F7: 9527 | G7: 49035.4718 | H7: -7520 | I7: =SUM(B7:D7)-SUM(E7:H7) -> 1243176.485
A8: Region Sjælland, Børn-unge psykiatrien | B8: 237897 | C8: 9864.086333 | D8: 13046.76142 | E8: 0 | F8: 1097 | G8: 9819.5282 | H8: -1516 | I8: 251407.3196
A9: Ikke fordelte udgifter i Region Sjælland, psykiatri | B9: 0 | C9: -24270.01829 | D9: 0 | E9: 0 | F9: 0 | G9: -24270.01829 | H9: 0 | I9: 5.456968211e-11

Sheet Afstemning af ikke fordelte
A1: Afstemning af Ikke fordelte indtægter- og udgifter
A2: 1.000 kr. | B2: 2023
A3: Skema 1 | B3: 0
A4: Skema 2 | B4: 0
A5: Skema 3 | B5: 0
A6: Skema 4 | B6: 0
A7: Skema 5 | B7: 0
A8: Skema 6 | B8: 0
A9: 1+2+3-4-5-6 | B9: =+B3+B4+B5-B6-B7-B8 -> 0
